[Event "Championnat d'Europe de Blitz"]
[Date "2024.12.09"]
[White "Bogdanovic, Vesna"]
[Black "Jobava, Baadur"]
[WhiteElo "2008"]
[BlackElo "2578"]
[Round "1.8"]
[Result "0-1"]
[TimeControl "180+2"]

1. e4 {[%emt 00:00:10] [%clk 00:03:02]} d6 {[%clk 00:03:01]} 2. g3 {[%emt
00:00:13] [%clk 00:02:54]} Nf6 {[%clk 00:03:00]} 3. Bg2 {[%clk 00:02:53]} e5
{[%clk 00:03:01]} 4. Nc3 {[%emt 00:00:03] [%clk 00:02:51]} g6 {[%emt 00:00:04]
[%clk 00:02:58]} 5. d3 {[%emt 00:00:07] [%clk 00:02:46]} Bg7 {[%emt 00:00:01]
[%clk 00:02:59]} 6. Nge2 {[%emt 00:00:03] [%clk 00:02:45]} O-O {[%emt 00:00:02]
[%clk 00:02:59]} 7. O-O {[%emt 00:00:04] [%clk 00:02:44]} Nc6 {[%emt 00:00:04]
[%clk 00:02:57]} 8. f4 {[%emt 00:00:20] [%clk 00:02:26]} exf4 {[%emt 00:00:02]
[%clk 00:02:57]} 9. gxf4 {[%emt 00:00:10] [%clk 00:02:18]} Re8 {[%emt 00:00:06]
[%clk 00:02:53]} 10. Ng3 {[%emt 00:00:12] [%clk 00:02:08]} Bg4 {[%emt 00:00:06]
[%clk 00:02:49]} 11. Bf3 {[%emt 00:00:04] [%clk 00:02:06]} Bxf3 {[%emt 00:00:03]
[%clk 00:02:48]} 12. Qxf3 {[%emt 00:00:03] [%clk 00:02:04]} Nd4 {[%emt 00:00:06]
[%clk 00:02:44]} 13. Qg2 {[%emt 00:00:03] [%clk 00:02:04]} c6 {[%emt 00:00:10]
[%clk 00:02:35]} 14. Nd1 {[%emt 00:00:05] [%clk 00:02:02]} d5 {[%emt 00:00:29]
[%clk 00:02:08]} 15. c3 {[%emt 00:00:09] [%clk 00:01:54]} Ne6 {[%emt 00:00:05]
[%clk 00:02:05]} 16. e5 {[%emt 00:00:12] [%clk 00:01:44]} Nd7 {[%emt 00:00:02]
[%clk 00:02:06]} 17. Be3 {[%emt 00:00:11] [%clk 00:01:35]} f5 {[%emt 00:00:13]
[%clk 00:01:55]} 18. d4 {[%emt 00:00:08] [%clk 00:01:28]} a5 {[%emt 00:00:03]
[%clk 00:01:54]} 19. Nf2 {[%emt 00:00:02] [%clk 00:01:29]} a4 {[%emt 00:00:02]
[%clk 00:01:54]} 20. Nd3 {[%emt 00:00:02] [%clk 00:01:28]} Nb6 {[%emt 00:00:05]
[%clk 00:01:51]} 21. Qf2 {[%emt 00:00:04] [%clk 00:01:26]} Nc4 {[%emt 00:00:02]
[%clk 00:01:51]} 22. b3 {[%emt 00:00:05] [%clk 00:01:24]} Nxe3 {[%emt 00:00:02]
[%clk 00:01:51]} 23. Qxe3 {[%emt 00:00:02] [%clk 00:01:24]} axb3 {[%emt
00:00:06] [%clk 00:01:46]} 24. axb3 {[%emt 00:00:04] [%clk 00:01:22]} Qh4 {[%emt
00:00:02] [%clk 00:01:46]} 25. Ne2 {[%emt 00:00:09] [%clk 00:01:16]} Qg4+ {[%emt
00:00:04] [%clk 00:01:44]} 26. Kf2 {[%emt 00:00:01] [%clk 00:01:16]} Bf8 {[%emt
00:00:15] [%clk 00:01:31]} 27. Qg3 {[%emt 00:00:05] [%clk 00:01:13]} Qh5 {[%emt
00:00:02] [%clk 00:01:31]} 28. Ke3 {[%emt 00:00:06] [%clk 00:01:09]} Be7 {[%emt
00:00:03] [%clk 00:01:31]} 29. Ng1 {[%emt 00:00:05] [%clk 00:01:06]} Bh4 {[%emt
00:00:07] [%clk 00:01:25]} 30. Qg2 {[%emt 00:00:06] [%clk 00:01:02]} Qg4 {[%emt
00:00:19] [%clk 00:01:08]} 31. Qxg4 {[%emt 00:00:08] [%clk 00:00:56]} fxg4
{[%emt 00:00:02] [%clk 00:01:09]} 32. h3 {[%emt 00:00:04] [%clk 00:00:54]} gxh3
{[%emt 00:00:03] [%clk 00:01:07]} 33. Nxh3 {[%emt 00:00:02] [%clk 00:00:54]} Ng7
{[%emt 00:00:01] [%clk 00:01:08]} 34. Nc5 {[%emt 00:00:08] [%clk 00:00:48]} b5
{[%emt 00:00:07] [%clk 00:01:03]} 35. Ng1 {[%emt 00:00:09] [%clk 00:00:41]} Be7
{[%emt 00:00:03] [%clk 00:01:02]} 36. Nd3 {[%emt 00:00:05] [%clk 00:00:38]} Nf5+
{[%emt 00:00:02] [%clk 00:01:02]} 37. Kf3 {[%emt 00:00:02] [%clk 00:00:39]} b4
{[%emt 00:00:02] [%clk 00:01:02]} 38. Ne2 {[%emt 00:00:09] [%clk 00:00:32]} bxc3
{[%emt 00:00:01] [%clk 00:01:02]} 39. Rac1 {[%emt 00:00:04] [%clk 00:00:31]}
Nh4+ {[%emt 00:00:11] [%clk 00:00:53]} 40. Ke3 {[%emt 00:00:02] [%clk 00:00:31]}
Nf5+ {[%emt 00:00:01] [%clk 00:00:53]} 41. Kf3 {[%emt 00:00:01] [%clk 00:00:33]}
c5 {[%emt 00:00:05] [%clk 00:00:51]} 42. dxc5 {[%emt 00:00:03] [%clk 00:00:31]}
d4 {[%emt 00:00:02] [%clk 00:00:51]} 43. b4 {[%emt 00:00:07] [%clk 00:00:25]}
Ra2 {[%emt 00:00:02] [%clk 00:00:52]} 44. Rfe1 {[%emt 00:00:05] [%clk 00:00:23]}
Bh4 {[%emt 00:00:11] [%clk 00:00:42]} 45. Rh1 {[%emt 00:00:04] [%clk 00:00:20]}
Be7 {[%emt 00:00:06] [%clk 00:00:38]} 46. Rhe1 {[%emt 00:00:02] [%clk 00:00:21]}
Rb8 {[%emt 00:00:07] [%clk 00:00:32]} 47. Ra1 {[%emt 00:00:05] [%clk 00:00:18]}
Rd2 {[%emt 00:00:08] [%clk 00:00:26]} 48. Rad1 {[%emt 00:00:02] [%clk 00:00:18]}
Ne3 {[%emt 00:00:15] [%clk 00:00:26]} 0-1

[Site "Europe Echecs"]

[Event "Championnat d'Europe de Blitz"]
[Date "2024.12.09"]
[White "Santos Latasa, Jaime"]
[Black "Djokovic, Mirsad"]
[WhiteElo "2628"]
[BlackElo "2060"]
[Round "1.9"]
[Result "1-0"]
[TimeControl "180+2"]

1. Nf3 {[%emt 00:00:02] [%clk 00:03:01]} e6 {[%emt 00:00:08] [%clk 00:02:57]} 2.
c4 {[%emt 00:00:04] [%clk 00:02:59]} f5 {[%emt 00:00:15] [%clk 00:02:45]} 3. g3
{[%emt 00:00:04] [%clk 00:02:56]} Nf6 {[%clk 00:02:46]} 4. Bg2 {[%emt 00:00:01]
[%clk 00:02:57]} Be7 {[%emt 00:00:02] [%clk 00:02:46]} 5. O-O {[%emt 00:00:01]
[%clk 00:02:57]} O-O {[%clk 00:02:48]} 6. d4 {[%emt 00:00:09] [%clk 00:02:52]}
d6 {[%emt 00:00:01] [%clk 00:02:49]} 7. b3 {[%emt 00:00:08] [%clk 00:02:46]} Qe8
{[%emt 00:00:02] [%clk 00:02:49]} 8. Nc3 {[%emt 00:00:04] [%clk 00:02:44]} Qg6
{[%emt 00:00:04] [%clk 00:02:46]} 9. Qc2 {[%emt 00:00:08] [%clk 00:02:38]} a5
{[%emt 00:00:03] [%clk 00:02:45]} 10. Bb2 {[%emt 00:00:09] [%clk 00:02:32]} Nc6
{[%emt 00:00:09] [%clk 00:02:38]} 11. Rad1 {[%emt 00:00:36] [%clk 00:01:57]} Ne4
{[%emt 00:00:19] [%clk 00:02:21]} 12. e3 {[%emt 00:00:13] [%clk 00:01:45]} Bd7
{[%emt 00:00:15] [%clk 00:02:09]} 13. Ne1 {[%emt 00:00:11] [%clk 00:01:36]} Nf6
{[%emt 00:01:10] [%clk 00:01:01]} 14. Nd3 {[%emt 00:00:02] [%clk 00:01:37]} Nb4
{[%emt 00:00:04] [%clk 00:00:59]} 15. Qb1 {[%emt 00:00:02] [%clk 00:01:37]} c6
{[%emt 00:00:03] [%clk 00:00:58]} 16. Nf4 {[%emt 00:00:10] [%clk 00:01:28]} Qh6
{[%emt 00:00:01] [%clk 00:00:59]} 17. a3 {[%emt 00:00:06] [%clk 00:01:25]} Na6
{[%clk 00:01:00]} 18. d5 {[%emt 00:00:04] [%clk 00:01:24]} e5 {[%clk 00:01:02]}
19. Ne6 {[%emt 00:00:14] [%clk 00:01:12]} Bxe6 {[%emt 00:00:02] [%clk 00:01:01]}
20. dxe6 {[%emt 00:00:02] [%clk 00:01:12]} Ng4 {[%emt 00:00:04] [%clk 00:01:00]}
21. h3 {[%emt 00:00:02] [%clk 00:01:12]} Nf6 {[%emt 00:00:11] [%clk 00:00:50]}
22. Qxf5 {[%emt 00:00:04] [%clk 00:01:09]} Rae8 {[%emt 00:00:05] [%clk
00:00:48]} 23. Ne4 {[%emt 00:00:19] [%clk 00:00:53]} Nxe4 {[%emt 00:00:06] [%clk
00:00:44]} 24. Qxe4 {[%emt 00:00:01] [%clk 00:00:53]} Nc5 {[%emt 00:00:05] [%clk
00:00:42]} 25. Qc2 {[%clk 00:00:54]} Rf6 {[%emt 00:00:02] [%clk 00:00:42]} 26.
f4 {[%emt 00:00:04] [%clk 00:00:52]} Rg6 {[%emt 00:00:06] [%clk 00:00:39]} 27.
g4 {[%emt 00:00:03] [%clk 00:00:50]} Rxe6 {[%emt 00:00:03] [%clk 00:00:38]} 28.
b4 {[%emt 00:00:03] [%clk 00:00:49]} axb4 {[%emt 00:00:02] [%clk 00:00:38]} 29.
axb4 {[%emt 00:00:02] [%clk 00:00:50]} Nd7 {[%clk 00:00:39]} 30. b5 {[%emt
00:00:02] [%clk 00:00:49]} exf4 {[%emt 00:00:07] [%clk 00:00:34]} 31. exf4
{[%emt 00:00:02] [%clk 00:00:49]} Bf6 {[%emt 00:00:03] [%clk 00:00:33]} 32. bxc6
{[%emt 00:00:03] [%clk 00:00:48]} bxc6 {[%emt 00:00:03] [%clk 00:00:32]} 33. g5
{[%emt 00:00:02] [%clk 00:00:48]} Qh5 {[%emt 00:00:06] [%clk 00:00:28]} 34. gxf6
{[%emt 00:00:01] [%clk 00:00:48]} Re2 {[%clk 00:00:30]} 35. Rd2 {[%emt 00:00:03]
[%clk 00:00:48]} Rxd2 {[%emt 00:00:11] [%clk 00:00:21]} 36. Qxd2 {[%emt
00:00:01] [%clk 00:00:49]} Re2 {[%clk 00:00:23]} 37. Qxd6 {[%emt 00:00:10] [%clk
00:00:42]} Nxf6 {[%emt 00:00:06] [%clk 00:00:18]} 38. Bxf6 {[%emt 00:00:02]
[%clk 00:00:42]} gxf6 {[%emt 00:00:02] [%clk 00:00:19]} 39. Qxf6 {[%emt
00:00:02] [%clk 00:00:41]} Qc5+ {[%emt 00:00:07] [%clk 00:00:14]} 40. Kh1 {[%emt
00:00:02] [%clk 00:00:41]} Qxc4 {[%emt 00:00:01] [%clk 00:00:15]} 41. Rg1 {[%emt
00:00:04] [%clk 00:00:40]} h6 {[%emt 00:00:03]} 42. Qf5 1-0

[Site "Europe Echecs"]

[Event "Championnat d'Europe de Blitz"]
[Date "2024.12.09"]
[White "Kukov, Tode"]
[Black "Van Foreest, Jorden"]
[WhiteElo "2146"]
[BlackElo "2677"]
[Round "1.10"]
[Result "0-1"]
[TimeControl "180+2"]

1. d4 {[%emt 00:00:03] [%clk 00:03:01]} Nf6 {[%emt 00:00:02] [%clk 00:03:02]} 2.
Nf3 {[%emt 00:00:03] [%clk 00:03:00]} b6 {[%emt 00:00:02] [%clk 00:03:03]} 3. e3
{[%emt 00:00:10] [%clk 00:02:52]} Bb7 {[%emt 00:00:02] [%clk 00:03:03]} 4. Bd3
{[%emt 00:00:02] [%clk 00:02:52]} e6 {[%emt 00:00:04] [%clk 00:03:01]} 5. O-O
{[%emt 00:00:04] [%clk 00:02:50]} c5 {[%emt 00:00:05] [%clk 00:02:59]} 6. c4
{[%emt 00:00:03] [%clk 00:02:48]} cxd4 {[%emt 00:00:34] [%clk 00:02:27]} 7. exd4
{[%emt 00:00:02] [%clk 00:02:49]} d5 {[%clk 00:02:27]} 8. cxd5 {[%emt 00:00:17]
[%clk 00:02:34]} Nxd5 {[%emt 00:00:02] [%clk 00:02:27]} 9. Ne5 {[%emt 00:00:33]
[%clk 00:02:02]} a6 {[%emt 00:00:07] [%clk 00:02:23]} 10. Nc3 {[%emt 00:00:22]}
Nd7 {[%clk 00:02:18]} 11. Nxd7 {[%emt 00:01:16] [%clk 00:00:35]} Qxd7 {[%emt
00:00:02] [%clk 00:02:18]} 12. Re1 {[%emt 00:00:06] [%clk 00:00:31]} Be7 {[%emt
00:00:04] [%clk 00:02:15]} 13. Qg4 {[%emt 00:00:03] [%clk 00:00:31]} Nf6 {[%emt
00:00:07] [%clk 00:02:10]} 14. Qf4 {[%emt 00:00:09] [%clk 00:00:23]} O-O {[%emt
00:00:05] [%clk 00:02:08]} 15. Be3 {[%emt 00:00:10] [%clk 00:00:15]} Rfd8 {[%emt
00:00:07] [%clk 00:02:02]} 16. Rad1 {[%emt 00:00:02] [%clk 00:00:15]} b5 {[%emt
00:00:03] [%clk 00:02:02]} 17. a3 {[%emt 00:00:01] [%clk 00:00:17]} Rac8 {[%clk
00:02:02]} 18. Qg3 {[%emt 00:00:03] [%clk 00:00:16]} Bd6 {[%emt 00:00:03] [%clk
00:02:01]} 19. Qh3 {[%emt 00:00:03] [%clk 00:00:15]} Be7 {[%emt 00:00:13] [%clk
00:01:50]} 20. Bb1 {[%emt 00:00:07] [%clk 00:00:10]} g6 {[%emt 00:00:07] [%clk
00:01:45]} 21. Bg5 {[%emt 00:00:08] [%clk 00:00:04]} Nd5 {[%emt 00:00:03] [%clk
00:01:44]} 22. Bxe7 {[%emt 00:00:03] [%clk 00:00:03]} Qxe7 {[%emt 00:00:03]
[%clk 00:01:44]} 23. Ne4 {[%emt 00:00:01] [%clk 00:00:04]} Nf4 {[%emt 00:00:18]
[%clk 00:01:27]} 24. Qe3 {[%emt 00:00:02] [%clk 00:00:04]} Bxe4 {[%emt 00:00:04]
[%clk 00:01:25]} 25. Qxe4 {[%clk 00:00:04]} Qf6 {[%emt 00:00:05] [%clk
00:01:23]} 26. Qe3 {[%emt 00:00:05] [%clk 00:00:00]} 0-1

[Site "Europe Echecs"]

[Event "Championnat d'Europe de Blitz"]
[Date "2024.12.09"]
[White "Fressinet, Laurent"]
[Black "Sekulic, Dusan"]
[WhiteElo "2588"]
[BlackElo "2131"]
[Round "1.11"]
[Result "1-0"]
[TimeControl "180+2"]

1. Nf3 {[%clk 00:03:02]} Nf6 {[%clk 00:03:02]} 2. g3 {[%clk 00:03:02]} d6 {[%clk
00:03:02]} 3. d4 {[%emt 00:00:03] [%clk 00:02:59]} Nbd7 {[%emt 00:00:09] [%clk
00:03:03]} 4. Bg2 {[%clk 00:02:55]} e5 {[%clk 00:03:03]} 5. dxe5 {[%emt
00:00:04] [%clk 00:02:53]} dxe5 {[%emt 00:00:02] [%clk 00:03:03]} 6. O-O {[%emt
00:00:03] [%clk 00:02:52]} Bc5 {[%emt 00:00:11] [%clk 00:02:53]} 7. Nc3 {[%emt
00:00:07] [%clk 00:02:48]} O-O {[%emt 00:00:07] [%clk 00:02:48]} 8. Bg5 {[%emt
00:00:02] [%clk 00:02:47]} Re8 {[%emt 00:00:09] [%clk 00:02:42]} 9. Nd5 {[%emt
00:00:15] [%clk 00:02:34]} Bd6 {[%emt 00:00:18] [%clk 00:02:26]} 10. Nd2 {[%emt
00:00:04] [%clk 00:02:32]} h6 {[%emt 00:00:07] [%clk 00:02:21]} 11. Bxf6 {[%emt
00:00:14] [%clk 00:02:21]} Nxf6 {[%emt 00:00:02] [%clk 00:02:21]} 12. Nxf6+
{[%emt 00:00:02] [%clk 00:02:21]} Qxf6 {[%emt 00:00:03] [%clk 00:02:20]} 13. Ne4
{[%emt 00:00:01] [%clk 00:02:22]} Qg6 {[%emt 00:00:02] [%clk 00:02:20]} 14. Nxd6
{[%emt 00:00:04] [%clk 00:02:19]} cxd6 {[%emt 00:00:02] [%clk 00:02:20]} 15. Qd2
{[%emt 00:00:05] [%clk 00:02:16]} e4 {[%emt 00:00:27] [%clk 00:01:55]} 16. Rad1
{[%emt 00:00:06] [%clk 00:02:12]} Re6 {[%emt 00:00:18] [%clk 00:01:39]} 17. Qb4
{[%emt 00:00:12] [%clk 00:02:02]} b6 {[%emt 00:00:10] [%clk 00:01:31]} 18. Rd4
{[%emt 00:00:05] [%clk 00:01:59]} Bb7 {[%emt 00:00:04] [%clk 00:01:29]} 19. Rfd1
{[%emt 00:00:03] [%clk 00:01:59]} d5 {[%emt 00:00:02] [%clk 00:01:28]} 20. e3
{[%emt 00:00:16] [%clk 00:01:45]} Rc8 {[%emt 00:00:11] [%clk 00:01:20]} 21. c3
{[%emt 00:00:09] [%clk 00:01:38]} Kh7 {[%emt 00:00:27] [%clk 00:00:54]} 22. Qa4
{[%emt 00:00:02] [%clk 00:01:38]} a5 {[%emt 00:00:07] [%clk 00:00:50]} 23. Qd7
{[%emt 00:00:08] [%clk 00:01:32]} Rb8 {[%emt 00:00:06] [%clk 00:00:46]} 24. Bh3
{[%emt 00:00:07] [%clk 00:01:27]} f5 {[%emt 00:00:08] [%clk 00:00:40]} 25. Qc7
{[%emt 00:00:13]} Ree8 {[%clk 00:00:34]} 26. Qf4 {[%emt 00:00:04] [%clk
00:01:21]} Rf8 {[%emt 00:00:05] [%clk 00:00:31]} 27. Rxd5 {[%emt 00:00:02] [%clk
00:01:22]} Bxd5 {[%emt 00:00:02] [%clk 00:00:31]} 28. Rxd5 {[%clk 00:01:23]} Qc6
{[%emt 00:00:13] [%clk 00:00:21]} 29. Rxf5 {[%emt 00:00:07] [%clk 00:01:17]}
Rxf5 {[%emt 00:00:23] [%clk 00:00:00]} 1-0

[Site "Europe Echecs"]

[Event "Championnat d'Europe de Blitz"]
[Date "2024.12.09"]
[White "Kucharska, Honorata"]
[Black "Pultinevicius, Paulius"]
[WhiteElo "2071"]
[BlackElo "2579"]
[Round "1.12"]
[Result "0-1"]
[TimeControl "180+2"]

1. e4 {[%clk 00:03:03]} c5 {[%emt 00:00:11] [%clk 00:03:01]} 2. Nf3 {[%clk
00:03:03]} e6 {[%clk 00:03:02]} 3. d3 {[%emt 00:00:12] [%clk 00:02:51]} Nc6
{[%emt 00:00:06] [%clk 00:02:56]} 4. g3 {[%clk 00:02:52]} g6 {[%emt 00:00:03]
[%clk 00:02:55]} 5. Bg2 {[%emt 00:00:01] [%clk 00:02:53]} Bg7 {[%emt 00:00:01]
[%clk 00:02:55]} 6. O-O {[%emt 00:00:03] [%clk 00:02:52]} Nge7 {[%emt 00:00:01]
[%clk 00:02:56]} 7. Nbd2 {[%emt 00:00:04] [%clk 00:02:51]} O-O {[%emt 00:00:03]
[%clk 00:02:55]} 8. Re1 {[%emt 00:00:02] [%clk 00:02:51]} d6 {[%emt 00:00:04]
[%clk 00:02:53]} 9. c3 {[%emt 00:00:03] [%clk 00:02:49]} b5 {[%emt 00:00:03]
[%clk 00:02:53]} 10. Nf1 {[%emt 00:00:05] [%clk 00:02:45]} b4 {[%emt 00:00:02]
[%clk 00:02:53]} 11. Bd2 {[%emt 00:00:11] [%clk 00:02:37]} Rb8 {[%emt 00:00:02]
[%clk 00:02:52]} 12. Qc2 {[%emt 00:00:08] [%clk 00:02:30]} a5 {[%emt 00:00:10]
[%clk 00:02:45]} 13. Rad1 {[%emt 00:00:08] [%clk 00:02:24]} Qb6 {[%emt 00:00:15]
[%clk 00:02:32]} 14. Rb1 {[%emt 00:00:14] [%clk 00:02:12]} Ba6 {[%emt 00:00:02]
[%clk 00:02:32]} 15. Ne3 {[%emt 00:00:08] [%clk 00:02:07]} b3 {[%emt 00:00:05]
[%clk 00:02:29]} 16. axb3 {[%emt 00:00:17] [%clk 00:01:52]} Qxb3 {[%emt
00:00:02] [%clk 00:02:29]} 17. Qxb3 {[%emt 00:00:29] [%clk 00:01:25]} Rxb3
{[%emt 00:00:01] [%clk 00:02:29]} 18. Bf1 {[%emt 00:00:35] [%clk 00:00:52]} Rfb8
{[%emt 00:00:02] [%clk 00:02:29]} 19. Nd1 {[%emt 00:00:23] [%clk 00:00:31]} h6
{[%emt 00:00:09] [%clk 00:02:22]} 20. Ra1 {[%emt 00:00:05] [%clk 00:00:28]} g5
{[%emt 00:00:02] [%clk 00:02:23]} 21. h3 {[%emt 00:00:02] [%clk 00:00:28]} Ng6
{[%emt 00:00:04] [%clk 00:02:21]} 22. Be3 {[%emt 00:00:05] [%clk 00:00:25]} Nge5
{[%emt 00:00:05] [%clk 00:02:18]} 23. Nxe5 {[%emt 00:00:04] [%clk 00:00:22]}
Nxe5 {[%emt 00:00:02] [%clk 00:02:18]} 24. d4 {[%emt 00:00:01] [%clk 00:00:23]}
Nf3+ {[%emt 00:00:03] [%clk 00:02:18]} 25. Kh1 {[%emt 00:00:02] [%clk 00:00:22]}
Nxe1 {[%emt 00:00:06] [%clk 00:02:14]} 26. Bxa6 {[%emt 00:00:01] [%clk
00:00:23]} Nc2 {[%emt 00:00:03] [%clk 00:02:14]} 27. Rxa5 {[%emt 00:00:03] [%clk
00:00:22]} cxd4 {[%emt 00:00:02] [%clk 00:02:14]} 28. cxd4 {[%emt 00:00:02]
[%clk 00:00:22]} Ra8 {[%emt 00:00:01] [%clk 00:02:14]} 29. Bc4 {[%emt 00:00:11]
[%clk 00:00:13]} Rxa5 {[%emt 00:00:02] [%clk 00:02:15]} 30. Bxb3 {[%emt
00:00:02] [%clk 00:00:13]} Nxd4 {[%emt 00:00:02] [%clk 00:02:14]} 31. Bxd4
{[%emt 00:00:06] [%clk 00:00:09]} Bxd4 {[%emt 00:00:01] [%clk 00:02:15]} 32. Bc4
{[%emt 00:00:03] [%clk 00:00:09]} Ra1 {[%emt 00:00:02] [%clk 00:02:15]} 33. Be2
{[%clk 00:00:10]} Bxf2 {[%emt 00:00:01] [%clk 00:02:15]} 34. Kg2 {[%emt
00:00:01] [%clk 00:00:11]} Bd4 {[%emt 00:00:01] [%clk 00:02:16]} 35. Kf3 {[%emt
00:00:01] [%clk 00:00:12]} Rc1 {[%emt 00:00:03] [%clk 00:02:15]} 36. h4 {[%emt
00:00:07] [%clk 00:00:07]} Kg7 {[%emt 00:00:03] [%clk 00:02:14]} 37. hxg5 {[%emt
00:00:01] [%clk 00:00:08]} hxg5 {[%clk 00:02:16]} 38. b3 {[%emt 00:00:03] [%clk
00:00:08]} Rc2 {[%emt 00:00:04] [%clk 00:02:14]} 39. Bd3 {[%emt 00:00:06] [%clk
00:00:03]} Rd2 {[%emt 00:00:01] [%clk 00:02:15]} 40. Be2 {[%clk 00:00:05]} g4+
{[%emt 00:00:01] [%clk 00:02:15]} 0-1

[Site "Europe Echecs"]

[Event "Championnat d'Europe de Blitz"]
[Date "2024.12.09"]
[White "Kadric, Denis"]
[Black "Ciolacu, Alessia-Mihaela"]
[WhiteElo "2544"]
[BlackElo "2124"]
[Round "1.13"]
[Result "1-0"]
[TimeControl "180+2"]

1. e4 {[%clk 00:03:02]} e5 {[%emt 00:00:01] [%clk 00:03:02]} 2. Nf3 {[%emt
00:00:01] [%clk 00:03:03]} Nc6 {[%emt 00:00:02] [%clk 00:03:03]} 3. Bc4 {[%emt
00:00:01] [%clk 00:03:04]} Nf6 {[%emt 00:00:02] [%clk 00:03:03]} 4. d3 {[%clk
00:03:05]} h6 {[%emt 00:00:07] [%clk 00:02:58]} 5. a4 {[%emt 00:00:05] [%clk
00:03:03]} d6 {[%emt 00:00:05] [%clk 00:02:54]} 6. a5 {[%emt 00:00:04] [%clk
00:03:02]} a6 {[%emt 00:00:01] [%clk 00:02:54]} 7. Nc3 {[%emt 00:00:01] [%clk
00:03:02]} g6 {[%emt 00:00:18] [%clk 00:02:39]} 8. h3 {[%emt 00:00:08] [%clk
00:02:56]} Bg7 {[%emt 00:00:02] [%clk 00:02:39]} 9. Be3 {[%emt 00:00:01] [%clk
00:02:57]} Qe7 {[%emt 00:00:21] [%clk 00:02:20]} 10. O-O {[%emt 00:00:20] [%clk
00:02:39]} O-O {[%emt 00:00:02] [%clk 00:02:19]} 11. Re1 {[%emt 00:00:14] [%clk
00:02:27]} Be6 {[%emt 00:00:12] [%clk 00:02:10]} 12. Qd2 {[%emt 00:00:17] [%clk
00:02:12]} Kh7 {[%emt 00:00:01] [%clk 00:02:10]} 13. Nd5 {[%emt 00:00:17] [%clk
00:01:58]} Qd8 {[%emt 00:00:56] [%clk 00:01:16]} 14. Nxf6+ {[%emt 00:00:33]
[%clk 00:01:27]} Qxf6 {[%emt 00:00:01] [%clk 00:01:17]} 15. Ng5+ {[%emt
00:00:01] [%clk 00:01:28]} Kg8 {[%emt 00:00:25] [%clk 00:00:54]} 16. Nxe6 {[%emt
00:00:02] [%clk 00:01:28]} fxe6 {[%emt 00:00:02] [%clk 00:00:54]} 17. Bxh6
{[%emt 00:00:07] [%clk 00:01:23]} Bxh6 {[%emt 00:00:35] [%clk 00:00:20]} 18.
Qxh6 {[%emt 00:00:02] [%clk 00:01:24]} Nd4 {[%emt 00:00:01] [%clk 00:00:21]} 19.
Qd2 {[%emt 00:00:19] [%clk 00:01:07]} c6 {[%emt 00:00:10] [%clk 00:00:14]} 20.
c3 {[%emt 00:00:07] [%clk 00:01:01]} Nb5 {[%emt 00:00:04] [%clk 00:00:12]} 21.
Re3 {[%emt 00:00:09] [%clk 00:00:54]} Nc7 {[%emt 00:00:08] [%clk 00:00:06]} 22.
Rf3 {[%emt 00:00:13] [%clk 00:00:43]} Qh4 {[%emt 00:00:02] [%clk 00:00:06]} 23.
Rg3 {[%emt 00:00:01] [%clk 00:00:44]} Kh7 {[%emt 00:00:03] [%clk 00:00:05]} 24.
Re1 {[%emt 00:00:13] [%clk 00:00:33]} Qf4 {[%emt 00:00:02] [%clk 00:00:06]} 25.
Qe2 {[%emt 00:00:03] [%clk 00:00:31]} d5 {[%emt 00:00:02] [%clk 00:00:06]} 26.
Bb3 {[%emt 00:00:03] [%clk 00:00:30]} Rae8 {[%emt 00:00:09]} 27. Re3 {[%clk
00:00:24]} d4 {[%emt 00:00:03] [%clk 00:00:06]} 28. Rf3 {[%emt 00:00:11] [%clk
00:00:15]} Qg5 {[%clk 00:00:08]} 29. Rg3 {[%emt 00:00:02] [%clk 00:00:16]} Qf4
{[%emt 00:00:01] [%clk 00:00:08]} 30. Rg4 {[%emt 00:00:03] [%clk 00:00:14]} Qf6
{[%clk 00:00:10]} 31. cxd4 {[%emt 00:00:02] [%clk 00:00:14]} exd4 {[%clk
00:00:11]} 32. f4 {[%emt 00:00:02] [%clk 00:00:14]} e5 {[%emt 00:00:06] [%clk
00:00:07]} 33. fxe5 {[%emt 00:00:03] [%clk 00:00:13]} Rxe5 {[%emt 00:00:02]
[%clk 00:00:07]} 34. Qd2 {[%emt 00:00:03] [%clk 00:00:12]} Re7 {[%emt 00:00:05]
[%clk 00:00:04]} 35. Rg3 {[%emt 00:00:02] [%clk 00:00:11]} Qe5 {[%emt 00:00:03]
[%clk 00:00:04]} 36. Rg5 {[%emt 00:00:02] [%clk 00:00:10]} Qf6 {[%emt 00:00:02]
[%clk 00:00:05]} 37. Bc4 {[%emt 00:00:04] [%clk 00:00:08]} Ne6 {[%emt 00:00:02]
[%clk 00:00:05]} 38. Bxe6 {[%emt 00:00:02] [%clk 00:00:07]} Qxe6 {[%emt
00:00:01] [%clk 00:00:06]} 39. Rg3 {[%emt 00:00:02] [%clk 00:00:08]} Ref7 {[%clk
00:00:07]} 40. Qg5 {[%emt 00:00:04] [%clk 00:00:05]} Qd6 {[%emt 00:00:04] [%clk
00:00:06]} 41. e5 {[%emt 00:00:01] [%clk 00:00:06]} Qe6 {[%emt 00:00:01] [%clk
00:00:07]} 42. Re4 {[%clk 00:00:07]} Qf5 {[%emt 00:00:02] [%clk 00:00:07]} 43.
Rh4+ {[%emt 00:00:02] [%clk 00:00:07]} Kg7 {[%clk 00:00:09]} 44. Qh6+ {[%clk
00:00:08]} 1-0

[Site "Europe Echecs"]